[Event "Live Chess"]
[Site "Chess.com"]
[Date "2023.05.20"]
[Round "-"]
[White "Conradical12"]
[Black "Ian-Morley"]
[Result "1-0"]
[WhiteElo "1520"]
[BlackElo "1080"]
[TimeControl "300"]
[EndTime "9:38:13 PDT"]
[Termination "Conradical12 won by resignation"]

1. e4 {[%clk 0:04:57.5]} 1... e5 {[%clk 0:04:57.8]} 2. Nf3 {[%clk 0:04:56.1]}
2... Nc6 {[%clk 0:04:56.7]} 3. Bb5 {[%clk 0:04:55.1]} 3... a6 {[%clk 0:04:55.2]}
4. Ba4 {[%clk 0:04:53.2]} 4... b5 {[%clk 0:04:54.2]} 5. Bb3 {[%clk 0:04:52.3]}
5... Qe7 {[%clk 0:04:51.3]} 6. O-O {[%clk 0:04:51.6]} 6... Nf6 {[%clk
0:04:50.2]} 7. d4 {[%clk 0:04:51.1]} 7... exd4 {[%clk 0:04:48.2]} 8. Nxd4 {[%clk
0:04:49.8]} 8... Nxd4 {[%clk 0:04:47.4]} 9. Qxd4 {[%clk 0:04:47.9]} 9... c5
{[%clk 0:04:37.8]} 10. Qd1 {[%clk 0:04:43.1]} 10... c4 {[%clk 0:04:36.3]} 11. e5
{[%clk 0:04:40.6]} 11... cxb3 {[%clk 0:04:34.5]} 12. exf6 {[%clk 0:04:39]} 12...
Qxf6 {[%clk 0:04:31.9]} 13. Re1+ {[%clk 0:04:37.4]} 13... Be7 {[%clk 0:04:31]}
14. Qd5 {[%clk 0:04:35]} 14... Rb8 {[%clk 0:04:20.3]} 15. Qc5 {[%clk 0:04:30.8]}
15... bxc2 {[%clk 0:04:11.6]} 16. Nc3 {[%clk 0:04:24.8]} 16... O-O {[%clk
0:04:05.6]} 17. Qxe7 {[%clk 0:04:22.8]} 17... Qxe7 {[%clk 0:04:02.7]} 18. Rxe7
{[%clk 0:04:21.2]} 18... Bb7 {[%clk 0:04:00.8]} 19. Bf4 {[%clk 0:04:10]} 19...
Rbc8 {[%clk 0:03:50.5]} 20. Rc1 {[%clk 0:04:07.5]} 20... b4 {[%clk 0:03:49.3]}
21. Ne4 {[%clk 0:04:04.5]} 21... Bxe4 {[%clk 0:03:45.3]} 22. Rxe4 {[%clk
0:04:02.9]} 22... Rfe8 {[%clk 0:03:44.3]} 23. Rxb4 {[%clk 0:03:54.4]} 23... Re2
{[%clk 0:03:41.7]} 24. h3 {[%clk 0:03:49.2]} 24... Rce8 {[%clk 0:03:37]} 25. Rc4
{[%clk 0:03:41.2]} 25... h6 {[%clk 0:03:34.4]} 26. Be3 {[%clk 0:03:38.6]} 26...
d5 {[%clk 0:03:28.4]} 27. Rd4 {[%clk 0:03:33.7]} 27... Kh7 {[%clk 0:03:23.3]}
28. Kf1 {[%clk 0:03:32.5]} 28... R2xe3 {[%clk 0:03:17.1]} 29. fxe3 {[%clk
0:03:30.7]} 29... Rxe3 {[%clk 0:03:16.2]} 30. Rxc2 {[%clk 0:03:30.4]} 30... Kg6
{[%clk 0:03:13.2]} 31. Rxd5 {[%clk 0:03:29.5]} 31... f5 {[%clk 0:03:10.4]} 32.
Rc6+ {[%clk 0:03:28.9]} 32... Kg5 {[%clk 0:03:09.6]} 33. h4+ {[%clk 0:03:27]}
33... Kg4 {[%clk 0:03:08.7]} 34. Rc4+ {[%clk 0:03:23.4]} 34... f4 {[%clk
0:03:07.2]} 35. Rdd4 {[%clk 0:03:20.7]} 35... g5 {[%clk 0:03:03.7]} 36. hxg5
{[%clk 0:03:19.3]} 36... hxg5 {[%clk 0:03:02.9]} 37. a4 {[%clk 0:03:15.2]} 37...
Rb3 {[%clk 0:02:57.3]} 38. Rd2 {[%clk 0:03:08.7]} 38... Kg3 {[%clk 0:02:53.2]}
39. Rc3+ {[%clk 0:03:06.8]} 39... Rxc3 {[%clk 0:02:51.2]} 40. bxc3 {[%clk
0:03:06.7]} 40... f3 {[%clk 0:02:50.1]} 41. gxf3 {[%clk 0:03:04.9]} 41... Kxf3
{[%clk 0:02:49.5]} 42. c4 {[%clk 0:03:04.7]} 42... g4 {[%clk 0:02:49]} 43. c5
{[%clk 0:03:03.5]} 43... g3 {[%clk 0:02:48.4]} 44. Rg2 {[%clk 0:03:02.6]} 44...
Ke4 {[%clk 0:02:45.4]} 45. c6 {[%clk 0:03:01.9]} 45... Kd5 {[%clk 0:02:44.8]}
46. c7 {[%clk 0:03:01.3]} 46... Kd6 {[%clk 0:02:44.3]} 47. c8=Q {[%clk
0:03:01.2]} 1-0

[Event "Live Chess"]
[Site "Chess.com"]
[Date "2023.05.20"]
[Round "-"]
[White "KeithArkell"]
[Black "grillage"]
[Result "1-0"]
[WhiteElo "2609"]
[BlackElo "1841"]
[TimeControl "300"]
[EndTime "9:38:15 PDT"]
[Termination "KeithArkell won on time"]

1. d4 {[%clk 0:04:58.8]} 1... Nf6 {[%clk 0:04:58.1]} 2. Nf3 {[%clk 0:04:58.1]}
2... e6 {[%clk 0:04:56.5]} 3. c4 {[%clk 0:04:57.4]} 3... Bb4+ {[%clk 0:04:54.9]}
4. Bd2 {[%clk 0:04:56.5]} 4... Bxd2+ {[%clk 0:04:54]} 5. Qxd2 {[%clk 0:04:55.7]}
5... d6 {[%clk 0:04:52.8]} 6. Nc3 {[%clk 0:04:54.6]} 6... Nbd7 {[%clk
0:04:50.6]} 7. g3 {[%clk 0:04:53.5]} 7... O-O {[%clk 0:04:48.5]} 8. Bg2 {[%clk
0:04:52.8]} 8... e5 {[%clk 0:04:40.1]} 9. O-O {[%clk 0:04:50.5]} 9... Re8 {[%clk
0:04:36.9]} 10. e4 {[%clk 0:04:48.9]} 10... Qe7 {[%clk 0:04:22.4]} 11. Rfe1
{[%clk 0:04:47.2]} 11... Nf8 {[%clk 0:04:16.7]} 12. Nd5 {[%clk 0:04:46.2]} 12...
Nxd5 {[%clk 0:04:04.7]} 13. cxd5 {[%clk 0:04:46.1]} 13... Ng6 {[%clk 0:03:46.3]}
14. Rac1 {[%clk 0:04:43.2]} 14... Bg4 {[%clk 0:03:34.2]} 15. dxe5 {[%clk
0:04:38.8]} 15... dxe5 {[%clk 0:03:18.8]} 16. Rc3 {[%clk 0:04:35.1]} 16... Rac8
{[%clk 0:03:11]} 17. Rec1 {[%clk 0:04:33.8]} 17... h6 {[%clk 0:02:54.4]} 18. h3
{[%clk 0:04:32.3]} 18... Bxf3 {[%clk 0:02:52.3]} 19. Bxf3 {[%clk 0:04:32.2]}
19... Qb4 {[%clk 0:02:33.2]} 20. a3 {[%clk 0:04:26.8]} 20... Qb6 {[%clk
0:02:30.1]} 21. Bg4 {[%clk 0:04:24.2]} 21... Rcd8 {[%clk 0:02:07.7]} 22. Rxc7
{[%clk 0:04:21.9]} 22... Qd4 {[%clk 0:01:28]} 23. Qxd4 {[%clk 0:04:19.3]} 23...
exd4 {[%clk 0:01:27.3]} 24. Bf5 {[%clk 0:03:14.8]} 24... Ne5 {[%clk 0:01:23]}
25. f4 {[%clk 0:02:54]} 25... Nd3 {[%clk 0:01:13.6]} 26. Rd1 {[%clk 0:02:45]}
26... Nxb2 {[%clk 0:01:10.5]} 27. Rxd4 {[%clk 0:02:44.1]} 27... b5 {[%clk
0:01:03.7]} 28. Rxa7 {[%clk 0:02:39.9]} 28... Nc4 {[%clk 0:00:59.8]} 29. a4
{[%clk 0:02:32.5]} 29... Nd6 {[%clk 0:00:53.9]} 30. a5 {[%clk 0:02:04.9]} 30...
g6 {[%clk 0:00:50.1]} 31. Bg4 {[%clk 0:02:00.2]} 31... Nxe4 {[%clk 0:00:48.8]}
32. Rb7 {[%clk 0:01:45.6]} 32... Nc3 {[%clk 0:00:45.9]} 33. a6 {[%clk
0:01:34.5]} 33... h5 {[%clk 0:00:44.8]} 34. Bf3 {[%clk 0:01:32.7]} 34... Re3
{[%clk 0:00:41.5]} 35. Kf2 {[%clk 0:01:31.1]} 35... Rde8 {[%clk 0:00:33.7]} 36.
a7 {[%clk 0:01:27.3]} 36... Re1 {[%clk 0:00:05.3]} 37. Rb8 {[%clk 0:01:23.4]}
1-0

[Event "Live Chess"]
[Site "Chess.com"]
[Date "2023.05.20"]
[Round "-"]
[White "lightningorderyt"]
[Black "JamesWallman"]
[Result "0-1"]
[WhiteElo "513"]
[BlackElo "821"]
[TimeControl "300"]
[EndTime "9:38:17 PDT"]
[Termination "JamesWallman won by checkmate"]

1. d4 {[%clk 0:04:58.1]} 1... d5 {[%clk 0:04:57.3]} 2. c4 {[%clk 0:04:55.6]}
2... e6 {[%clk 0:04:55.2]} 3. Nc3 {[%clk 0:04:53.7]} 3... Nf6 {[%clk 0:04:52.2]}
4. Bg5 {[%clk 0:04:48.4]} 4... Be7 {[%clk 0:04:50.6]} 5. e3 {[%clk 0:04:47.1]}
5... Nc6 {[%clk 0:04:47.6]} 6. Bd3 {[%clk 0:04:36.4]} 6... O-O {[%clk
0:04:45.1]} 7. Nf3 {[%clk 0:04:33.5]} 7... dxc4 {[%clk 0:04:42.4]} 8. Bxc4
{[%clk 0:04:26.9]} 8... Bd7 {[%clk 0:04:39.5]} 9. O-O {[%clk 0:04:22.9]} 9... a6
{[%clk 0:04:31.2]} 10. Qb3 {[%clk 0:04:10.5]} 10... b5 {[%clk 0:04:25.3]} 11.
Bd3 {[%clk 0:03:59.3]} 11... Na5 {[%clk 0:04:17.9]} 12. Qc2 {[%clk 0:03:44.6]}
12... h6 {[%clk 0:04:12.2]} 13. Bxf6 {[%clk 0:03:43.4]} 13... gxf6 {[%clk
0:04:01.8]} 14. e4 {[%clk 0:03:38.3]} 14... Nc4 {[%clk 0:03:46.6]} 15. e5 {[%clk
0:03:28.6]} 15... f5 {[%clk 0:03:42.4]} 16. b3 {[%clk 0:03:17.4]} 16... Na3
{[%clk 0:03:34.5]} 17. Qb2 {[%clk 0:03:03.4]} 17... b4 {[%clk 0:03:29.6]} 18.
Ne2 {[%clk 0:02:45.3]} 18... Bb5 {[%clk 0:03:25]} 19. Bxb5 {[%clk 0:02:30.5]}
19... axb5 {[%clk 0:03:21.4]} 20. Nf4 {[%clk 0:02:27.4]} 20... Bg5 {[%clk
0:03:06]} 21. Nxg5 {[%clk 0:02:21.1]} 21... Qxg5 {[%clk 0:03:00.7]} 22. g3
{[%clk 0:02:17.9]} 22... Rad8 {[%clk 0:02:50.6]} 23. Rad1 {[%clk 0:02:12.9]}
23... Kh7 {[%clk 0:02:45]} 24. Qd2 {[%clk 0:02:03.1]} 24... Rg8 {[%clk
0:02:30.8]} 25. Qxb4 {[%clk 0:01:53.2]} 25... Ra8 {[%clk 0:02:16.2]} 26. h4
{[%clk 0:01:34.6]} 26... Qg4 {[%clk 0:02:11.1]} 27. Qe7 {[%clk 0:01:12.6]} 27...
Qxf4 {[%clk 0:02:07.9]} 28. Qxf7+ {[%clk 0:01:05.5]} 28... Rg7 {[%clk
0:01:48.2]} 29. Qxe6 {[%clk 0:01:01.5]} 29... Qg4 {[%clk 0:01:41.5]} 30. d5
{[%clk 0:00:43.4]} 30... Nc2 {[%clk 0:01:36.4]} 31. Rc1 {[%clk 0:00:19.4]} 31...
Nd4 {[%clk 0:01:32]} 32. Qf6 {[%clk 0:00:04.8]} 32... Nf3+ {[%clk 0:01:25.9]}
33. Kh1 {[%clk 0:00:03.2]} 33... Qh3# {[%clk 0:01:20.3]} 0-1

[Event "Live Chess"]
[Site "Chess.com"]
[Date "2023.05.20"]
[Round "-"]
[White "friarnator"]
[Black "Doge_Dandolo"]
[Result "0-1"]
[WhiteElo "1977"]
[BlackElo "2109"]
[TimeControl "300"]
[EndTime "9:38:18 PDT"]
[Termination "Doge_Dandolo won by checkmate"]

1. e4 {[%clk 0:04:56.8]} 1... c6 {[%clk 0:04:58.1]} 2. d4 {[%clk 0:04:53.3]}
2... d5 {[%clk 0:04:57.1]} 3. Nc3 {[%clk 0:04:51.8]} 3... dxe4 {[%clk 0:04:56]}
4. Nxe4 {[%clk 0:04:51.7]} 4... Bf5 {[%clk 0:04:55.2]} 5. Ng3 {[%clk 0:04:50.9]}
5... Bg6 {[%clk 0:04:54.6]} 6. h4 {[%clk 0:04:50]} 6... h6 {[%clk 0:04:53.8]} 7.
Nf3 {[%clk 0:04:49.7]} 7... Nd7 {[%clk 0:04:52.9]} 8. h5 {[%clk 0:04:48.3]} 8...
Bh7 {[%clk 0:04:51.9]} 9. Bd3 {[%clk 0:04:48.1]} 9... Bxd3 {[%clk 0:04:50.8]}
10. Qxd3 {[%clk 0:04:48]} 10... e6 {[%clk 0:04:49.8]} 11. Bd2 {[%clk 0:04:47.7]}
11... Ngf6 {[%clk 0:04:48.6]} 12. O-O-O {[%clk 0:04:47.2]} 12... Be7 {[%clk
0:04:47.8]} 13. Kb1 {[%clk 0:04:47]} 13... O-O {[%clk 0:04:46.3]} 14. Ne4 {[%clk
0:04:45.1]} 14... c5 {[%clk 0:04:45.3]} 15. c4 {[%clk 0:04:32.8]} 15... cxd4
{[%clk 0:04:38.7]} 16. Nxd4 {[%clk 0:04:27.8]} 16... Ne5 {[%clk 0:04:33.5]} 17.
Nxf6+ {[%clk 0:04:13.5]} 17... Bxf6 {[%clk 0:04:30.9]} 18. Qe4 {[%clk
0:04:13.1]} 18... Nxc4 {[%clk 0:04:23.1]} 19. Bc3 {[%clk 0:03:57.1]} 19... Qb6
{[%clk 0:04:15.9]} 20. Rh3 {[%clk 0:03:37]} 20... Rfd8 {[%clk 0:04:10.2]} 21.
Rhd3 {[%clk 0:03:31.5]} 21... Rac8 {[%clk 0:03:55]} 22. Nb3 {[%clk 0:02:57.2]}
22... Rxd3 {[%clk 0:03:44.2]} 23. Rxd3 {[%clk 0:02:54.1]} 23... Qxf2 {[%clk
0:03:31.8]} 24. a3 {[%clk 0:02:17.3]} 24... Bxc3 {[%clk 0:03:27.1]} 25. Rxc3
{[%clk 0:02:14]} 25... Qxb2# {[%clk 0:03:25.2]} 0-1

[Event "Live Chess"]
[Site "Chess.com"]
[Date "2023.05.20"]
[Round "-"]
[White "onemoretime1975"]
[Black "apl_trainer"]
[Result "0-1"]
[WhiteElo "1942"]
[BlackElo "1567"]
[TimeControl "300"]
[EndTime "9:38:19 PDT"]
[Termination "apl_trainer won by resignation"]

1. e4 {[%clk 0:04:57.4]} 1... c5 {[%clk 0:04:58.6]} 2. Nf3 {[%clk 0:04:54.9]}
2... e6 {[%clk 0:04:57.4]} 3. g3 {[%clk 0:04:52]} 3... Nc6 {[%clk 0:04:55.4]} 4.
Bg2 {[%clk 0:04:48.4]} 4... Nge7 {[%clk 0:04:50.7]} 5. d3 {[%clk 0:04:45.6]}
5... g6 {[%clk 0:04:49.3]} 6. c3 {[%clk 0:04:43.4]} 6... Bg7 {[%clk 0:04:47.7]}
7. O-O {[%clk 0:04:41.8]} 7... e5 {[%clk 0:04:45.8]} 8. Nbd2 {[%clk 0:04:23.1]}
8... d6 {[%clk 0:04:43.7]} 9. a4 {[%clk 0:04:20.7]} 9... O-O {[%clk 0:04:41.3]}
10. Nc4 {[%clk 0:04:19.4]} 10... h6 {[%clk 0:04:36.9]} 11. Be3 {[%clk
0:04:13.2]} 11... Be6 {[%clk 0:04:32.6]} 12. Nfd2 {[%clk 0:04:07.5]} 12... f5
{[%clk 0:04:17.2]} 13. f4 {[%clk 0:04:00.1]} 13... exf4 {[%clk 0:04:13]} 14.
Bxf4 {[%clk 0:03:56.6]} 14... d5 {[%clk 0:04:02.4]} 15. exd5 {[%clk 0:03:40.6]}
15... Nxd5 {[%clk 0:04:00.8]} 16. Bd6 {[%clk 0:03:30]} 16... Rf7 {[%clk
0:03:41.3]} 17. Bxc5 {[%clk 0:03:27.6]} 17... g5 {[%clk 0:03:31.6]} 18. Nd6
{[%clk 0:03:02.8]} 18... Rf6 {[%clk 0:03:19.2]} 19. c4 {[%clk 0:02:49.4]} 19...
Nde7 {[%clk 0:03:04.7]} 20. Rb1 {[%clk 0:02:40.5]} 20... b6 {[%clk 0:03:00.8]}
21. Ba3 {[%clk 0:02:33.5]} 21... Rb8 {[%clk 0:02:55.6]} 22. Nb5 {[%clk
0:02:27.8]} 22... a6 {[%clk 0:02:45.1]} 23. Nd6 {[%clk 0:02:17.9]} 23... Nd4
{[%clk 0:02:41.3]} 24. Nf3 {[%clk 0:02:08]} 24... Nec6 {[%clk 0:02:36.1]} 25. c5
{[%clk 0:01:51.1]} 25... bxc5 {[%clk 0:02:22.2]} 26. Bxc5 {[%clk 0:01:49.5]}
26... Nb3 {[%clk 0:02:17]} 27. Ba3 {[%clk 0:01:35.2]} 27... Bd5 {[%clk
0:02:09.8]} 28. Nd2 {[%clk 0:01:29.3]} 28... Bxg2 {[%clk 0:02:06.3]} 29. Kxg2
{[%clk 0:01:27.8]} 29... Rxd6 {[%clk 0:01:59.5]} 30. Qxb3+ {[%clk 0:01:25.1]}
30... Rxb3 {[%clk 0:01:57.5]} 31. Nxb3 {[%clk 0:01:23.1]} 31... Rxd3 {[%clk
0:01:54.9]} 32. Nc5 {[%clk 0:01:16]} 32... Qd5+ {[%clk 0:01:50.9]} 33. Kg1
{[%clk 0:01:12.9]} 33... Bd4+ {[%clk 0:01:47]} 0-1

[Event "Live Chess"]
[Site "Chess.com"]
[Date "2023.05.20"]
[Round "-"]
[White "yeetpizza74"]
[Black "SaraTang"]
[Result "1-0"]
[WhiteElo "450"]
[BlackElo "165"]
[TimeControl "300"]
[EndTime "9:38:20 PDT"]
[Termination "yeetpizza74 won by checkmate"]

1. e4 {[%clk 0:04:58.1]} 1... e5 {[%clk 0:04:57.5]} 2. Nf3 {[%clk 0:04:57.1]}
2... Nc6 {[%clk 0:04:54.9]} 3. Bc4 {[%clk 0:04:54.1]} 3... Bc5 {[%clk
0:04:49.9]} 4. d3 {[%clk 0:04:52.3]} 4... Nf6 {[%clk 0:04:43.7]} 5. c3 {[%clk
0:04:48.2]} 5... O-O {[%clk 0:04:39.4]} 6. d4 {[%clk 0:04:46.1]} 6... exd4
{[%clk 0:04:37.8]} 7. cxd4 {[%clk 0:04:45]} 7... Bxd4 {[%clk 0:04:34.9]} 8. Nxd4
{[%clk 0:04:42.5]} 8... Nxd4 {[%clk 0:04:33.7]} 9. Qxd4 {[%clk 0:04:40.9]} 9...
Nxe4 {[%clk 0:04:32.2]} 10. Qxe4 {[%clk 0:04:35.7]} 10... Re8 {[%clk 0:04:29]}
11. Bg5 {[%clk 0:04:09.6]} 11... Qxg5 {[%clk 0:04:26.3]} 12. Qxe8# {[%clk
0:04:05.8]} 1-0

[Event "Live Chess"]
[Site "Chess.com"]
[Date "2023.05.20"]
[Round "-"]
[White "TheSmoulderingMaster"]
[Black "ChunTang"]
[Result "1-0"]
[WhiteElo "1791"]
[BlackElo "105"]
[TimeControl "300"]
[EndTime "9:38:29 PDT"]
[Termination "TheSmoulderingMaster won on time"]

1. e4 {[%clk 0:04:59.6]} 1... e5 {[%clk 0:04:56.8]} 2. Nf3 {[%clk 0:04:58]} 2...
Nf6 {[%clk 0:04:52.9]} 3. Nxe5 {[%clk 0:04:56.6]} 3... d6 {[%clk 0:04:48.6]} 4.
Nf3 {[%clk 0:04:54.9]} 4... Nc6 {[%clk 0:04:41.7]} 5. Bb5 {[%clk 0:04:53.6]}
5... a6 {[%clk 0:04:33.5]} 6. Ba4 {[%clk 0:04:52.1]} 6... Nxe4 {[%clk
0:04:23.2]} 7. O-O {[%clk 0:04:50.6]} 7... Be6 {[%clk 0:04:13.3]} 8. Re1 {[%clk
0:04:49.2]} 8... d5 {[%clk 0:03:57.3]} 9. Nd4 {[%clk 0:04:46.8]} 9... Bc5 {[%clk
0:03:41]} 10. Nxc6 {[%clk 0:04:44.9]} 10... bxc6 {[%clk 0:03:35.8]} 11. d4
{[%clk 0:04:42.8]} 11... Be7 {[%clk 0:03:15.1]} 12. Bxc6+ {[%clk 0:04:41.4]}
12... Bd7 {[%clk 0:03:02.7]} 13. Bxa8 {[%clk 0:04:40]} 13... Qxa8 {[%clk
0:02:58]} 14. Nd2 {[%clk 0:04:38.8]} 14... O-O {[%clk 0:02:56.7]} 15. Nxe4
{[%clk 0:04:37.6]} 15... dxe4 {[%clk 0:02:55.1]} 16. Qe2 {[%clk 0:04:36.5]}
16... f5 {[%clk 0:02:34.9]} 17. Bf4 {[%clk 0:04:33.1]} 17... c6 {[%clk
0:02:19.1]} 18. Be5 {[%clk 0:04:28.5]} 18... Bf6 {[%clk 0:01:48.7]} 19. Bxf6
{[%clk 0:04:27.2]} 19... gxf6 {[%clk 0:01:47.5]} 20. Rad1 {[%clk 0:04:25.7]}
20... Qe8 {[%clk 0:01:36.4]} 21. c4 {[%clk 0:04:24.1]} 21... Qg6 {[%clk
0:01:06.7]} 22. d5 {[%clk 0:04:22.5]} 22... cxd5 {[%clk 0:01:02.1]} 23. Rxd5
{[%clk 0:04:21]} 23... Bc6 {[%clk 0:00:51.3]} 24. Rd6 {[%clk 0:04:19.9]} 24...
Ba8 {[%clk 0:00:32.4]} 25. c5 {[%clk 0:04:18.6]} 25... e3 {[%clk 0:00:19.1]} 26.
f3 {[%clk 0:04:17.1]} 26... f4 {[%clk 0:00:10.2]} 27. Red1 {[%clk 0:04:14.9]}
27... Re8 {[%clk 0:00:01.7]} 28. Rd7 {[%clk 0:04:13]} 1-0

[Event "Live Chess"]
[Site "Chess.com"]
[Date "2023.05.20"]
[Round "-"]
[White "RoaringKnights"]
[Black "SupremeTactician"]
[Result "0-1"]
[WhiteElo "925"]
[BlackElo "2405"]
[TimeControl "300"]
[EndTime "9:38:33 PDT"]
[Termination "SupremeTactician won by checkmate"]

1. d4 {[%clk 0:04:58.7]} 1... Nf6 {[%clk 0:04:59]} 2. Bf4 {[%clk 0:04:56.1]}
2... e6 {[%clk 0:04:57]} 3. e3 {[%clk 0:04:53.3]} 3... c5 {[%clk 0:04:55.8]} 4.
c3 {[%clk 0:04:52]} 4... b6 {[%clk 0:04:53.9]} 5. Bd3 {[%clk 0:04:51]} 5... Bb7
{[%clk 0:04:53.2]} 6. Nd2 {[%clk 0:04:50.2]} 6... Bxg2 {[%clk 0:04:50.7]} 7.
Ngf3 {[%clk 0:04:48.4]} 7... Bxh1 {[%clk 0:04:49.9]} 8. Be2 {[%clk 0:04:42.6]}
8... d5 {[%clk 0:04:48.1]} 9. Qc2 {[%clk 0:04:37.3]} 9... Bxf3 {[%clk
0:04:47.4]} 10. Bxf3 {[%clk 0:04:36.1]} 10... Nbd7 {[%clk 0:04:46.8]} 11. O-O-O
{[%clk 0:04:33.8]} 11... Be7 {[%clk 0:04:46]} 12. Rg1 {[%clk 0:04:31.4]} 12...
cxd4 {[%clk 0:04:45.2]} 13. Rxg7 {[%clk 0:04:26.9]} 13... dxc3 {[%clk
0:04:41.3]} 14. bxc3 {[%clk 0:04:22.3]} 14... Rc8 {[%clk 0:04:36.7]} 15. Kb1
{[%clk 0:04:08.9]} 15... Bb4 {[%clk 0:04:31.2]} 16. Be5 {[%clk 0:03:58.2]} 16...
Nxe5 {[%clk 0:04:28.8]} 17. Qb3 {[%clk 0:03:52.3]} 17... Bxc3 {[%clk 0:04:24.9]}
18. Qb5+ {[%clk 0:03:50.6]} 18... Qd7 {[%clk 0:04:24.1]} 19. Qxd7+ {[%clk
0:03:48.6]} 19... Kxd7 {[%clk 0:04:24]} 20. Nb3 {[%clk 0:03:42.2]} 20... Nxf3
{[%clk 0:04:19.5]} 21. Rxf7+ {[%clk 0:03:39.7]} 21... Kd6 {[%clk 0:04:18.7]} 22.
Nd4 {[%clk 0:03:38]} 22... Bxd4 {[%clk 0:04:17.8]} 23. exd4 {[%clk 0:03:36.8]}
23... Nd2+ {[%clk 0:04:16.9]} 24. Kb2 {[%clk 0:03:34.4]} 24... Nfe4 {[%clk
0:04:16.3]} 25. Rxa7 {[%clk 0:03:31]} 25... Rc7 {[%clk 0:04:15.4]} 26. Rxc7
{[%clk 0:03:25.6]} 26... Kxc7 {[%clk 0:04:15.3]} 27. Kc2 {[%clk 0:03:24.1]}
27... Rc8 {[%clk 0:04:13.9]} 28. Kd3 {[%clk 0:03:22]} 28... Kd6 {[%clk
0:04:13.8]} 29. f3 {[%clk 0:03:21.4]} 29... Rc3+ {[%clk 0:04:13]} 30. Ke2 {[%clk
0:03:18.7]} 30... e5 {[%clk 0:04:12.9]} 31. fxe4 {[%clk 0:03:17]} 31... Nxe4
{[%clk 0:04:12.8]} 32. Kd1 {[%clk 0:03:15.3]} 32... exd4 {[%clk 0:04:12]} 33.
Ke2 {[%clk 0:03:13.6]} 33... Ke5 {[%clk 0:04:11.9]} 34. Kd1 {[%clk 0:03:12.6]}
34... Kf4 {[%clk 0:04:11.8]} 35. Ke2 {[%clk 0:03:11.2]} 35... Rc2+ {[%clk
0:04:10.9]} 36. Kd3 {[%clk 0:03:09.9]} 36... Rd2# {[%clk 0:04:09.7]} 0-1

[Event "Live Chess"]
[Site "Chess.com"]
[Date "2023.05.20"]
[Round "-"]
[White "SirEntrails"]
[Black "Nico14021974"]
[Result "1-0"]
[WhiteElo "517"]
[BlackElo "642"]
[TimeControl "300"]
[EndTime "9:38:46 PDT"]
[Termination "SirEntrails won by checkmate"]

1. e4 {[%clk 0:04:57.8]} 1... e5 {[%clk 0:04:58.8]} 2. Nf3 {[%clk 0:04:57.1]}
2... d6 {[%clk 0:04:56.7]} 3. Bb5+ {[%clk 0:04:51.1]} 3... c6 {[%clk 0:04:52.5]}
4. Bc4 {[%clk 0:04:47.9]} 4... Nf6 {[%clk 0:04:50.7]} 5. Ng5 {[%clk 0:04:46.2]}
5... h6 {[%clk 0:04:39.3]} 6. Nxf7 {[%clk 0:04:43.6]} 6... Qd7 {[%clk
0:04:23.6]} 7. Nxh8 {[%clk 0:04:38.7]} 7... Ng8 {[%clk 0:04:15.6]} 8. Bxg8
{[%clk 0:04:31.2]} 8... a5 {[%clk 0:04:03.5]} 9. Bf7+ {[%clk 0:04:28.6]} 9...
Kd8 {[%clk 0:03:52]} 10. Ng6 {[%clk 0:04:23.4]} 10... Be7 {[%clk 0:03:44.4]} 11.
Nxe7 {[%clk 0:04:17.4]} 11... Kxe7 {[%clk 0:03:43.3]} 12. Bc4 {[%clk 0:04:12]}
12... b5 {[%clk 0:03:31.3]} 13. Bb3 {[%clk 0:04:08]} 13... c5 {[%clk 0:03:25.6]}
14. d3 {[%clk 0:04:04.6]} 14... Nc6 {[%clk 0:03:20.7]} 15. h3 {[%clk 0:04:00.3]}
15... h5 {[%clk 0:03:14.1]} 16. Qxh5 {[%clk 0:03:57.1]} 16... g5 {[%clk
0:03:10.9]} 17. Qh7+ {[%clk 0:03:50.9]} 17... Kd8 {[%clk 0:03:01.3]} 18. Qxd7+
{[%clk 0:03:48.2]} 18... Kxd7 {[%clk 0:03:00.1]} 19. g3 {[%clk 0:03:40.2]} 19...
Ne7 {[%clk 0:02:55.1]} 20. Bxg5 {[%clk 0:03:36.6]} 20... Ng6 {[%clk 0:02:49.6]}
21. O-O {[%clk 0:03:30.7]} 21... Bb7 {[%clk 0:02:43.3]} 22. Nc3 {[%clk
0:03:28.7]} 22... b4 {[%clk 0:02:40.3]} 23. Nb5 {[%clk 0:03:25.1]} 23... Kc6
{[%clk 0:02:38.2]} 24. Bc4 {[%clk 0:03:16.2]} 24... d5 {[%clk 0:02:33.5]} 25.
Bxd5+ {[%clk 0:03:12.2]} 25... Kb6 {[%clk 0:02:13.1]} 26. Bxb7 {[%clk
0:02:50.6]} 26... Kxb7 {[%clk 0:02:11.2]} 27. Nd6+ {[%clk 0:02:47]} 27... Kc7
{[%clk 0:02:08.7]} 28. Nb5+ {[%clk 0:02:44.6]} 28... Kb6 {[%clk 0:02:06.8]} 29.
Nd6 {[%clk 0:02:41.9]} 29... Rd8 {[%clk 0:02:02.5]} 30. Nc4+ {[%clk 0:02:39.2]}
30... Kb5 {[%clk 0:02:00.3]} 31. h4 {[%clk 0:02:36.2]} 31... Kc6 {[%clk
0:01:54.7]} 32. h5 {[%clk 0:02:34.9]} 32... Ne7 {[%clk 0:01:50.5]} 33. h6 {[%clk
0:02:33.8]} 33... Nc8 {[%clk 0:01:39.5]} 34. Bxd8 {[%clk 0:02:32.4]} 34... Kd7
{[%clk 0:01:34.7]} 35. h7 {[%clk 0:02:31.7]} 35... Kxd8 {[%clk 0:01:32.8]} 36.
h8=Q+ {[%clk 0:02:30.3]} 36... Kd7 {[%clk 0:01:31.9]} 37. Qxe5 {[%clk
0:02:24.4]} 37... Kd8 {[%clk 0:01:26.6]} 38. Nd6 {[%clk 0:02:19.6]} 38... Na7
{[%clk 0:01:11.7]} 39. Qe8+ {[%clk 0:02:17]} 39... Kc7 {[%clk 0:01:08.6]} 40.
Qe7+ {[%clk 0:02:08]} 40... Kb8 {[%clk 0:01:01.2]} 41. Qb7# {[%clk 0:01:58.5]}
1-0